[Event "*** Titled Tuesday Blitz"]
[Site "Chess.com"]
[Date "2019.07.02"]
[Round "6"]
[White "Natalya_Buksa"]
[Black "Aknok"]
[Result "0-1"]
[WhiteElo "2433"]
[BlackElo "2377"]
[TimeControl "180+2"]
[EndTime "14:21:52 PDT"]
[Termination "Aknok won by checkmate"]

1. e4 {[%clk 0:02:52]} 1... e6 {[%clk 0:02:59.3]} 2. d4 {[%clk 0:02:51.7]} 2...
d5 {[%clk 0:03:00.7]} 3. Nd2 {[%clk 0:02:53.1]} 3... dxe4 {[%clk 0:02:58]} 4.
Nxe4 {[%clk 0:02:53.6]} 4... Qd5 {[%clk 0:02:59]} 5. Ng3 {[%clk 0:02:49.9]} 5...
c5 {[%clk 0:02:58.9]} 6. Nf3 {[%clk 0:02:50.4]} 6... cxd4 {[%clk 0:02:59.4]} 7.
Qxd4 {[%clk 0:02:51.6]} 7... Nf6 {[%clk 0:03:00.4]} 8. Qxd5 {[%clk 0:02:50.7]}
8... Nxd5 {[%clk 0:03:02.3]} 9. Bb5+ {[%clk 0:02:51.4]} 9... Bd7 {[%clk
0:03:02]} 10. Bd3 {[%clk 0:02:51.6]} 10... Nc6 {[%clk 0:02:56.4]} 11. c3 {[%clk
0:02:51.9]} 11... Bc5 {[%clk 0:02:48.3]} 12. O-O {[%clk 0:02:39.7]} 12... O-O
{[%clk 0:02:46.8]} 13. Ne4 {[%clk 0:02:40.8]} 13... Bb6 {[%clk 0:02:44.4]} 14.
Nd6 {[%clk 0:02:33.5]} 14... Rab8 {[%clk 0:02:41.8]} 15. Ng5 {[%clk 0:02:33]}
15... h6 {[%clk 0:02:08.8]} 16. Nf3 {[%clk 0:02:09.2]} 16... e5 {[%clk
0:01:44.6]} 17. Re1 {[%clk 0:01:08]} 17... Bc5 {[%clk 0:01:24]} 18. Nc4 {[%clk
0:01:04.9]} 18... f6 {[%clk 0:01:21.8]} 19. Nh4 {[%clk 0:00:43.4]} 19... Rfd8
{[%clk 0:01:13.4]} 20. Ng6 {[%clk 0:00:42.3]} 20... Be8 {[%clk 0:01:07.6]} 21.
Be4 {[%clk 0:00:31.5]} 21... b5 {[%clk 0:00:54.9]} 22. Ne3 {[%clk 0:00:28.9]}
22... Nxe3 {[%clk 0:00:45.9]} 23. Bxe3 {[%clk 0:00:29]} 23... Bxe3 {[%clk
0:00:45.5]} 24. Rxe3 {[%clk 0:00:29.8]} 24... Na5 {[%clk 0:00:41.3]} 25. Ne7+
{[%clk 0:00:29.9]} 25... Kf8 {[%clk 0:00:38.1]} 26. Nd5 {[%clk 0:00:30]} 26...
Nc4 {[%clk 0:00:35.7]} 27. Re2 {[%clk 0:00:30.8]} 27... Bf7 {[%clk 0:00:33]} 28.
Nb4 {[%clk 0:00:29.1]} 28... Rd6 {[%clk 0:00:29.1]} 29. a4 {[%clk 0:00:23.1]}
29... bxa4 {[%clk 0:00:20.6]} 30. Rxa4 {[%clk 0:00:24.2]} 30... Rd1+ {[%clk
0:00:20.5]} 31. Re1 {[%clk 0:00:23]} 31... Rxe1# {[%clk 0:00:20.8]} 0-1

[Event "*** Titled Tuesday Blitz"]
[Site "Chess.com"]
[Date "2019.07.02"]
[Round "6"]
[White "Blitzstream"]
[Black "ElGasanov"]
[Result "0-1"]
[WhiteElo "2776"]
[BlackElo "2740"]
[TimeControl "180+2"]
[EndTime "14:21:53 PDT"]
[Termination "ElGasanov won by resignation"]

1. d4 {[%clk 0:03:01.9]} 1... d5 {[%clk 0:03:00.2]} 2. Bf4 {[%clk 0:03:02.9]}
2... Nf6 {[%clk 0:02:58.5]} 3. e3 {[%clk 0:03:03.5]} 3... g6 {[%clk 0:02:59.7]}
4. Nf3 {[%clk 0:03:03.9]} 4... Bg7 {[%clk 0:03:00.9]} 5. Be2 {[%clk 0:03:04]}
5... O-O {[%clk 0:03:01.9]} 6. O-O {[%clk 0:03:04.7]} 6... c5 {[%clk 0:03:01.3]}
7. c3 {[%clk 0:03:04.4]} 7... Nc6 {[%clk 0:03:01.8]} 8. Nbd2 {[%clk 0:02:55.9]}
8... b6 {[%clk 0:03:01.7]} 9. Ne5 {[%clk 0:02:56.3]} 9... Bb7 {[%clk 0:03:00.5]}
10. Nxc6 {[%clk 0:02:41.2]} 10... Bxc6 {[%clk 0:03:01.2]} 11. Be5 {[%clk
0:02:43.1]} 11... Re8 {[%clk 0:02:56.6]} 12. Bf3 {[%clk 0:02:42.5]} 12... Rc8
{[%clk 0:02:53.1]} 13. Re1 {[%clk 0:02:33.7]} 13... e6 {[%clk 0:02:52.5]} 14.
Qb3 {[%clk 0:02:23.7]} 14... Bh6 {[%clk 0:02:48.1]} 15. Rad1 {[%clk 0:02:15]}
15... Nd7 {[%clk 0:02:46.8]} 16. Bd6 {[%clk 0:02:11.6]} 16... Bg7 {[%clk
0:02:40.6]} 17. Qa3 {[%clk 0:01:59.3]} 17... a5 {[%clk 0:02:32.4]} 18. b3 {[%clk
0:01:32.6]} 18... b5 {[%clk 0:02:23.2]} 19. Bxc5 {[%clk 0:01:28.4]} 19... Nxc5
{[%clk 0:02:22.4]} 20. dxc5 {[%clk 0:01:17.1]} 20... Bxc3 {[%clk 0:02:22.9]} 21.
Qc1 {[%clk 0:01:15.8]} 21... b4 {[%clk 0:02:12.7]} 22. e4 {[%clk 0:01:05.9]}
22... d4 {[%clk 0:01:48.1]} 23. e5 {[%clk 0:00:50.3]} 23... Bxf3 {[%clk
0:01:47.8]} 24. Nxf3 {[%clk 0:00:51.5]} 24... Bxe1 {[%clk 0:01:37.8]} 25. Qh6
{[%clk 0:00:49.8]} 25... f5 {[%clk 0:01:05.3]} 26. exf6 {[%clk 0:00:40.2]} 26...
Qxf6 {[%clk 0:01:01.7]} 27. Rxe1 {[%clk 0:00:39.6]} 27... Rxc5 {[%clk
0:01:03.2]} 28. h4 {[%clk 0:00:38.8]} 28... Rf5 {[%clk 0:00:45.5]} 29. Ng5
{[%clk 0:00:25.3]} 29... Qg7 {[%clk 0:00:41.7]} 30. Qxg7+ {[%clk 0:00:26.2]}
30... Kxg7 {[%clk 0:00:43.2]} 31. g4 {[%clk 0:00:24.7]} 31... Rd5 {[%clk
0:00:37.1]} 32. Nxe6+ {[%clk 0:00:22]} 32... Kf7 {[%clk 0:00:28.8]} 0-1

[Event "*** Titled Tuesday Blitz"]
[Site "Chess.com"]
[Date "2019.07.02"]
[Round "6"]
[White "andrzej"]
[Black "volcanoexplorer"]
[Result "1-0"]
[WhiteElo "2343"]
[BlackElo "2521"]
[TimeControl "180+2"]
[EndTime "14:22:03 PDT"]
[Termination "andrzej won on time"]

1. d4 {[%clk 0:03:01.9]} 1... Nf6 {[%clk 0:03:01.2]} 2. Bg5 {[%clk 0:03:01.9]}
2... d5 {[%clk 0:03:01.9]} 3. Bxf6 {[%clk 0:03:02.2]} 3... exf6 {[%clk
0:03:03.8]} 4. e3 {[%clk 0:03:02.1]} 4... Bd6 {[%clk 0:02:56.9]} 5. g3 {[%clk
0:03:03.5]} 5... c6 {[%clk 0:02:57.8]} 6. Bg2 {[%clk 0:03:04.9]} 6... f5 {[%clk
0:02:57.5]} 7. Ne2 {[%clk 0:03:06.1]} 7... Nd7 {[%clk 0:02:57.1]} 8. Nd2 {[%clk
0:03:07]} 8... Nf6 {[%clk 0:02:58.2]} 9. c4 {[%clk 0:03:08]} 9... dxc4 {[%clk
0:02:54.2]} 10. Nxc4 {[%clk 0:03:08]} 10... Bb4+ {[%clk 0:02:38.3]} 11. Nc3
{[%clk 0:03:04.4]} 11... O-O {[%clk 0:02:37.9]} 12. O-O {[%clk 0:03:04.5]} 12...
Be6 {[%clk 0:02:37.6]} 13. Qe2 {[%clk 0:02:54.6]} 13... Re8 {[%clk 0:02:15.9]}
14. Rfd1 {[%clk 0:02:39.9]} 14... a5 {[%clk 0:01:19.8]} 15. Rac1 {[%clk
0:02:35.4]} 15... a4 {[%clk 0:01:00.8]} 16. a3 {[%clk 0:02:33.9]} 16... Be7
{[%clk 0:00:57.3]} 17. Ne5 {[%clk 0:02:27.9]} 17... Bd6 {[%clk 0:00:56.8]} 18.
Nc4 {[%clk 0:02:05.7]} 18... Bc7 {[%clk 0:00:57]} 19. Nd2 {[%clk 0:01:47]} 19...
Qe7 {[%clk 0:00:40.3]} 20. Re1 {[%clk 0:01:32.5]} 20... h5 {[%clk 0:00:34.4]}
21. Nf3 {[%clk 0:01:31.5]} 21... Bb3 {[%clk 0:00:24.7]} 22. Nh4 {[%clk
0:01:27.7]} 22... g6 {[%clk 0:00:25.5]} 23. Nf3 {[%clk 0:01:26.4]} 23... Ba5
{[%clk 0:00:21.6]} 24. Ne5 {[%clk 0:01:22.4]} 24... Kg7 {[%clk 0:00:17.9]} 25.
Nc4 {[%clk 0:01:07.9]} 25... Bc7 {[%clk 0:00:18.1]} 26. Nd2 {[%clk 0:01:08.5]}
26... Be6 {[%clk 0:00:17]} 27. Nf3 {[%clk 0:01:08.9]} 27... Ne4 {[%clk 0:00:16]}
28. Nd2 {[%clk 0:00:45.1]} 28... Nxc3 {[%clk 0:00:16]} 29. Rxc3 {[%clk
0:00:42.7]} 29... Ba5 {[%clk 0:00:16.9]} 30. Rcc1 {[%clk 0:00:43.4]} 30... Red8
{[%clk 0:00:08.7]} 31. Red1 {[%clk 0:00:41.4]} 31... Qf6 {[%clk 0:00:07]} 32.
Nf3 {[%clk 0:00:36.1]} 32... Bb3 {[%clk 0:00:05.6]} 33. Rf1 {[%clk 0:00:37]}
33... Rac8 {[%clk 0:00:04.1]} 34. Ne5 {[%clk 0:00:37.2]} 34... Bc7 {[%clk
0:00:03]} 35. Nd3 {[%clk 0:00:29.7]} 1-0

[Event "*** Titled Tuesday Blitz"]
[Site "Chess.com"]
[Date "2019.07.02"]
[Round "6"]
[White "przemekpiotrowski"]
[Black "tteshan"]
[Result "0-1"]
[WhiteElo "2329"]
[BlackElo "2232"]
[TimeControl "180+2"]
[EndTime "14:22:04 PDT"]
[Termination "tteshan won by checkmate"]

1. d4 {[%clk 0:02:57.6]} 1... d5 {[%clk 0:03:00.6]} 2. Nf3 {[%clk 0:02:58]} 2...
Nf6 {[%clk 0:03:00.8]} 3. g3 {[%clk 0:02:58.8]} 3... e6 {[%clk 0:03:00.1]} 4.
Bg2 {[%clk 0:02:59.7]} 4... Bd6 {[%clk 0:03:01.1]} 5. O-O {[%clk 0:03:00]} 5...
O-O {[%clk 0:03:02.5]} 6. c4 {[%clk 0:03:00.8]} 6... dxc4 {[%clk 0:03:01.7]} 7.
a4 {[%clk 0:03:00.8]} 7... Nc6 {[%clk 0:02:59.8]} 8. Nbd2 {[%clk 0:02:57.9]}
8... Na5 {[%clk 0:02:59.6]} 9. Qc2 {[%clk 0:02:56]} 9... Bd7 {[%clk 0:02:51.4]}
10. Nxc4 {[%clk 0:02:55.3]} 10... Nxc4 {[%clk 0:02:50.8]} 11. Qxc4 {[%clk
0:02:57.2]} 11... Bc6 {[%clk 0:02:49.2]} 12. Bg5 {[%clk 0:02:56.7]} 12... h6
{[%clk 0:02:46.7]} 13. Bxf6 {[%clk 0:02:54.3]} 13... Qxf6 {[%clk 0:02:48.6]} 14.
Qd3 {[%clk 0:02:39.1]} 14... Rfd8 {[%clk 0:02:43.3]} 15. e4 {[%clk 0:02:39.2]}
15... Bf8 {[%clk 0:02:39.9]} 16. Qe3 {[%clk 0:02:34.6]} 16... g6 {[%clk
0:02:20.2]} 17. Ne5 {[%clk 0:02:33]} 17... Be8 {[%clk 0:02:08.1]} 18. Rac1
{[%clk 0:02:08.9]} 18... Rac8 {[%clk 0:01:56.9]} 19. Rfd1 {[%clk 0:02:02.5]}
19... Bxa4 {[%clk 0:01:52]} 20. b3 {[%clk 0:01:59.9]} 20... Be8 {[%clk
0:01:52.2]} 21. f4 {[%clk 0:01:55.2]} 21... c5 {[%clk 0:01:48.1]} 22. d5 {[%clk
0:01:46.7]} 22... c4 {[%clk 0:01:41.6]} 23. Kh1 {[%clk 0:01:23.6]} 23... cxb3
{[%clk 0:01:23]} 24. Ng4 {[%clk 0:01:04.9]} 24... Qb2 {[%clk 0:01:13.4]} 25. Rb1
{[%clk 0:00:58.8]} 25... Qa2 {[%clk 0:01:02.5]} 26. Rxb3 {[%clk 0:00:33.4]}
26... Rc2 {[%clk 0:00:57.1]} 27. Nf6+ {[%clk 0:00:25]} 27... Kh8 {[%clk
0:00:51.6]} 28. Nxe8 {[%clk 0:00:17.9]} 28... Rxe8 {[%clk 0:00:46.1]} 29. Qf3
{[%clk 0:00:12.3]} 29... Rxg2 {[%clk 0:00:39.2]} 30. Qxg2 {[%clk 0:00:12]} 30...
Qxb3 {[%clk 0:00:39.2]} 31. Qd2 {[%clk 0:00:10.7]} 31... exd5 {[%clk 0:00:37.1]}
32. exd5 {[%clk 0:00:12.6]} 32... Bg7 {[%clk 0:00:34.9]} 33. d6 {[%clk
0:00:12.6]} 33... Qf3+ {[%clk 0:00:32]} 34. Kg1 {[%clk 0:00:13]} 34... Re2
{[%clk 0:00:31.6]} 35. d7 {[%clk 0:00:06.8]} 35... Qg2# {[%clk 0:00:31.8]} 0-1

[Event "*** Titled Tuesday Blitz"]
[Site "Chess.com"]
[Date "2019.07.02"]
[Round "6"]
[White "GrigorGrigorov"]
[Black "Micki-taryan"]
[Result "0-1"]
[WhiteElo "2777"]
[BlackElo "2963"]
[TimeControl "180+2"]
[EndTime "14:22:13 PDT"]
[Termination "Micki-taryan won by resignation"]

1. d4 {[%clk 0:03:01.9]} 1... Nf6 {[%clk 0:03:00.2]} 2. c4 {[%clk 0:03:02.7]}
2... e6 {[%clk 0:03:01.5]} 3. Nf3 {[%clk 0:03:03.6]} 3... b6 {[%clk 0:02:57.2]}
4. g3 {[%clk 0:03:02.9]} 4... Ba6 {[%clk 0:02:58.2]} 5. b3 {[%clk 0:03:02.9]}
5... b5 {[%clk 0:02:59]} 6. cxb5 {[%clk 0:03:01.5]} 6... Bxb5 {[%clk 0:03:00.9]}
7. Bg2 {[%clk 0:03:02.4]} 7... d5 {[%clk 0:03:02.1]} 8. O-O {[%clk 0:02:59.5]}
8... c5 {[%clk 0:03:01.5]} 9. Nc3 {[%clk 0:02:52.8]} 9... Bc6 {[%clk 0:03:02.3]}
10. Ba3 {[%clk 0:02:52.4]} 10... Qa5 {[%clk 0:02:50.3]} 11. Qc1 {[%clk
0:02:51.1]} 11... Nbd7 {[%clk 0:02:47.1]} 12. dxc5 {[%clk 0:02:49]} 12... Bxc5
{[%clk 0:02:47]} 13. Bxc5 {[%clk 0:02:48.6]} 13... Qxc5 {[%clk 0:02:45.5]} 14.
Qb2 {[%clk 0:02:40.6]} 14... O-O {[%clk 0:02:46.5]} 15. Rac1 {[%clk 0:02:40.7]}
15... Qb6 {[%clk 0:02:48]} 16. e3 {[%clk 0:02:32.4]} 16... Nc5 {[%clk
0:02:48.6]} 17. Rfd1 {[%clk 0:02:31.2]} 17... Rfc8 {[%clk 0:02:46.8]} 18. Ne2
{[%clk 0:02:27]} 18... Bd7 {[%clk 0:02:38.2]} 19. Ne5 {[%clk 0:02:20.4]} 19...
Be8 {[%clk 0:02:38.2]} 20. h3 {[%clk 0:02:18.4]} 20... a5 {[%clk 0:02:38.6]} 21.
Qd4 {[%clk 0:02:13.3]} 21... Qd6 {[%clk 0:02:07.8]} 22. Rd2 {[%clk 0:01:45.9]}
22... Ncd7 {[%clk 0:02:04.4]} 23. Nxd7 {[%clk 0:01:37.2]} 23... Bxd7 {[%clk
0:02:05.2]} 24. Rdc2 {[%clk 0:01:36.2]} 24... Rxc2 {[%clk 0:02:06.1]} 25. Rxc2
{[%clk 0:01:38.1]} 25... h5 {[%clk 0:02:06]} 26. Qc5 {[%clk 0:01:26.5]} 26...
Qe5 {[%clk 0:02:07.1]} 27. Nd4 {[%clk 0:01:21.2]} 27... Qg5 {[%clk 0:01:57]} 28.
Qc7 {[%clk 0:00:59.6]} 28... Qg6 {[%clk 0:01:45.1]} 29. Qb7 {[%clk 0:00:35.6]}
29... Rd8 {[%clk 0:01:38.9]} 30. Qb6 {[%clk 0:00:35.6]} 30... Re8 {[%clk
0:01:36]} 31. Rc7 {[%clk 0:00:24.9]} 31... Qb1+ {[%clk 0:01:36.6]} 32. Bf1
{[%clk 0:00:23.8]} 32... Qxa2 {[%clk 0:01:38.5]} 33. Ra7 {[%clk 0:00:23.3]}
33... e5 {[%clk 0:01:36.9]} 34. Rxa5 {[%clk 0:00:21.8]} 34... Qb2 {[%clk
0:01:36.2]} 35. Ne2 {[%clk 0:00:19.6]} 35... Bxh3 {[%clk 0:01:37.3]} 36. Bxh3
{[%clk 0:00:19.2]} 36... Qxe2 {[%clk 0:01:38.5]} 37. Qb5 {[%clk 0:00:18.9]}
37... Qe1+ {[%clk 0:01:37.7]} 38. Bf1 {[%clk 0:00:16.6]} 38... Rc8 {[%clk
0:01:33.4]} 39. Ra2 {[%clk 0:00:12.3]} 39... Rc1 {[%clk 0:01:25.5]} 40. Kg2
{[%clk 0:00:13.3]} 40... Kh7 {[%clk 0:01:26.5]} 41. Qe2 {[%clk 0:00:14.1]} 41...
Qxe2 {[%clk 0:01:23.7]} 42. Bxe2 {[%clk 0:00:16]} 42... g6 {[%clk 0:01:24.6]}
43. Ra7 {[%clk 0:00:15.9]} 43... Kg7 {[%clk 0:01:23.7]} 44. b4 {[%clk
0:00:16.8]} 44... Rc2 {[%clk 0:01:24.2]} 45. Kf1 {[%clk 0:00:17.2]} 45... Rb2
{[%clk 0:01:24.3]} 46. b5 {[%clk 0:00:18.3]} 46... Ne4 {[%clk 0:01:25.1]} 47.
Rd7 {[%clk 0:00:16.1]} 47... Nc3 {[%clk 0:01:26.5]} 48. Bf3 {[%clk 0:00:14.9]}
48... e4 {[%clk 0:01:27.4]} 49. Rc7 {[%clk 0:00:10.7]} 49... Nxb5 {[%clk
0:01:27.1]} 0-1

[Event "*** Titled Tuesday Blitz"]
[Site "Chess.com"]
[Date "2019.07.02"]
[Round "6"]
[White "Fins0905"]
[Black "GameOverBro"]
[Result "1-0"]
[WhiteElo "2732"]
[BlackElo "2488"]
[TimeControl "180+2"]
[EndTime "14:22:13 PDT"]
[Termination "Fins0905 won by resignation"]

1. Nf3 {[%clk 0:03:01.9]} 1... g6 {[%clk 0:02:58.1]} 2. d4 {[%clk 0:03:01.2]}
2... Bg7 {[%clk 0:02:55.8]} 3. Bg5 {[%clk 0:03:02.7]} 3... b6 {[%clk 0:02:47.8]}
4. e4 {[%clk 0:03:00.8]} 4... Bb7 {[%clk 0:02:48.6]} 5. Bd3 {[%clk 0:03:01.5]}
5... d6 {[%clk 0:02:49.5]} 6. Qe2 {[%clk 0:03:00.4]} 6... f6 {[%clk 0:02:46.5]}
7. Bh4 {[%clk 0:02:56.1]} 7... Nh6 {[%clk 0:02:35]} 8. Nc3 {[%clk 0:02:53]} 8...
Nd7 {[%clk 0:02:32]} 9. e5 {[%clk 0:02:40.7]} 9... fxe5 {[%clk 0:02:21.5]} 10.
dxe5 {[%clk 0:02:33.3]} 10... Bxf3 {[%clk 0:02:21.7]} 11. Qxf3 {[%clk
0:02:30.4]} 11... Nxe5 {[%clk 0:02:22]} 12. Bb5+ {[%clk 0:02:29.5]} 12... c6
{[%clk 0:01:58.9]} 13. Bxc6+ {[%clk 0:02:28.6]} 13... Nxc6 {[%clk 0:02:00]} 14.
Qxc6+ {[%clk 0:02:30.5]} 14... Kf8 {[%clk 0:01:56.7]} 15. O-O {[%clk 0:02:19.2]}
15... Nf5 {[%clk 0:01:57.3]} 16. Qf3 {[%clk 0:02:07]} 16... Ke8 {[%clk
0:01:50.6]} 17. Bg5 {[%clk 0:02:00.2]} 17... Rf8 {[%clk 0:01:39.6]} 18. Rfe1
{[%clk 0:01:51.9]} 18... Rc8 {[%clk 0:01:39.8]} 19. Nd5 {[%clk 0:01:47]} 19...
Rf7 {[%clk 0:01:34.8]} 20. Qe4 {[%clk 0:01:36.3]} 20... h6 {[%clk 0:01:09.5]}
21. Bf4 {[%clk 0:01:11.7]} 21... e5 {[%clk 0:01:06.4]} 22. c3 {[%clk 0:01:05.8]}
22... Kf8 {[%clk 0:01:06]} 23. Bg3 {[%clk 0:01:06.7]} 23... h5 {[%clk
0:00:51.6]} 24. h3 {[%clk 0:01:02.3]} 24... Qg5 {[%clk 0:00:47.5]} 25. h4 {[%clk
0:00:56.4]} 25... Nxg3 {[%clk 0:00:44.4]} 26. hxg5 {[%clk 0:00:55.3]} 26... Nxe4
{[%clk 0:00:45.3]} 27. Rxe4 {[%clk 0:00:57.1]} 27... Rf5 {[%clk 0:00:44.5]} 28.
Rd1 {[%clk 0:00:38.9]} 28... Rxg5 {[%clk 0:00:39.2]} 29. Ra4 {[%clk 0:00:31]}
29... b5 {[%clk 0:00:23.9]} 30. Rxa7 {[%clk 0:00:30.9]} 30... Rc5 {[%clk
0:00:24.7]} 31. Nb4 {[%clk 0:00:26.4]} 31... d5 {[%clk 0:00:21.4]} 32. Nxd5
{[%clk 0:00:25.4]} 32... e4 {[%clk 0:00:22.3]} 33. Ne3 {[%clk 0:00:17.6]} 33...
Bf6 {[%clk 0:00:21.2]} 34. Rdd7 {[%clk 0:00:15.9]} 34... Rc6 {[%clk 0:00:21.4]}
35. Rf7+ {[%clk 0:00:16.2]} 35... Kg8 {[%clk 0:00:22.9]} 36. Rfb7 {[%clk
0:00:16.9]} 36... Rc8 {[%clk 0:00:22.4]} 37. Rd7 {[%clk 0:00:14.9]} 37... h4
{[%clk 0:00:22.8]} 38. Nd5 {[%clk 0:00:11.4]} 38... Be5 {[%clk 0:00:23.7]} 39.
Ne7+ {[%clk 0:00:12.5]} 39... Kf8 {[%clk 0:00:24.6]} 40. Nxc8 {[%clk 0:00:13.7]}
1-0

[Event "*** Titled Tuesday Blitz"]
[Site "Chess.com"]
[Date "2019.07.02"]
[Round "6"]
[White "WPWPWP-2015"]
[Black "Supernotar"]
[Result "0-1"]
[WhiteElo "2394"]
[BlackElo "2604"]
[TimeControl "180+2"]
[EndTime "14:22:14 PDT"]
[Termination "Supernotar won on time"]

1. e4 {[%clk 0:03:01.9]} 1... c6 {[%clk 0:02:59.3]} 2. d4 {[%clk 0:03:00.4]}
2... d5 {[%clk 0:03:00.4]} 3. e5 {[%clk 0:03:01.8]} 3... Bf5 {[%clk 0:03:01.1]}
4. Nf3 {[%clk 0:03:03.4]} 4... e6 {[%clk 0:03:01.6]} 5. Be2 {[%clk 0:03:05]}
5... Nd7 {[%clk 0:03:01.6]} 6. O-O {[%clk 0:03:05.6]} 6... h6 {[%clk 0:03:02.8]}
7. Nbd2 {[%clk 0:03:06.3]} 7... Ne7 {[%clk 0:03:03.7]} 8. a4 {[%clk 0:03:06.8]}
8... Qc7 {[%clk 0:03:04.5]} 9. a5 {[%clk 0:03:07.7]} 9... g5 {[%clk 0:03:01.8]}
10. b4 {[%clk 0:03:07.7]} 10... Bg7 {[%clk 0:02:58.7]} 11. Nb3 {[%clk
0:03:05.8]} 11... f6 {[%clk 0:02:47.3]} 12. exf6 {[%clk 0:03:04.5]} 12... Bxf6
{[%clk 0:02:48.2]} 13. Bd3 {[%clk 0:02:59.8]} 13... O-O-O {[%clk 0:01:53.2]} 14.
Re1 {[%clk 0:02:19.7]} 14... g4 {[%clk 0:01:50.9]} 15. Nfd2 {[%clk 0:02:09.4]}
15... h5 {[%clk 0:01:40.2]} 16. Nf1 {[%clk 0:01:47.9]} 16... e5 {[%clk
0:01:37.3]} 17. Bxf5 {[%clk 0:01:37.7]} 17... Nxf5 {[%clk 0:01:38]} 18. a6
{[%clk 0:01:01]} 18... b6 {[%clk 0:01:36.4]} 19. b5 {[%clk 0:00:56.2]} 19... c5
{[%clk 0:01:25.6]} 20. dxe5 {[%clk 0:00:54.8]} 20... Nxe5 {[%clk 0:01:17.6]} 21.
Bf4 {[%clk 0:00:54.4]} 21... Nf3+ {[%clk 0:01:06.2]} 22. Qxf3 {[%clk 0:00:53.8]}
22... gxf3 {[%clk 0:01:06.1]} 23. Bxc7 {[%clk 0:00:53.6]} 23... Kxc7 {[%clk
0:01:08]} 24. Rad1 {[%clk 0:00:49.7]} 24... fxg2 {[%clk 0:01:06.7]} 25. Kxg2
{[%clk 0:00:48.8]} 25... Nh4+ {[%clk 0:00:50.4]} 26. Kh3 {[%clk 0:00:38.5]}
26... Nf3 {[%clk 0:00:43.1]} 27. Re3 {[%clk 0:00:36.8]} 27... Ng5+ {[%clk
0:00:35]} 28. Kg2 {[%clk 0:00:35.9]} 28... Rhg8 {[%clk 0:00:35.8]} 29. Rg3
{[%clk 0:00:19.7]} 29... h4 {[%clk 0:00:36.7]} 30. Rg4 {[%clk 0:00:18.8]} 30...
h3+ {[%clk 0:00:37.9]} 31. Kh1 {[%clk 0:00:11.5]} 31... Ne4 {[%clk 0:00:37.7]}
32. Rf4 {[%clk 0:00:04]} 32... Rg2 {[%clk 0:00:34.9]} 33. Ng3 {[%clk 0:00:02.7]}
33... Nxf2+ {[%clk 0:00:31.2]} 34. Rxf2 {[%clk 0:00:03.5]} 34... Rxf2 {[%clk
0:00:32.8]} 35. Nc1 {[%clk 0:00:03.5]} 35... Bd4 {[%clk 0:00:24.8]} 0-1

[Event "*** Titled Tuesday Blitz"]
[Site "Chess.com"]
[Date "2019.07.02"]
[Round "6"]
[White "RitvarsReimanis"]
[Black "AndrewMaco"]
[Result "0-1"]
[WhiteElo "2578"]
[BlackElo "2604"]
[TimeControl "180+2"]
[EndTime "14:22:16 PDT"]
[Termination "AndrewMaco won on time"]

1. d4 {[%clk 0:03:01.9]} 1... Nf6 {[%clk 0:02:59.6]} 2. c4 {[%clk 0:03:00.3]}
2... e6 {[%clk 0:03:00.8]} 3. Nc3 {[%clk 0:03:00.9]} 3... Bb4 {[%clk 0:03:00.8]}
4. Qc2 {[%clk 0:03:01.5]} 4... d5 {[%clk 0:02:57.8]} 5. cxd5 {[%clk 0:03:02]}
5... Qxd5 {[%clk 0:02:59.7]} 6. Nf3 {[%clk 0:03:02.6]} 6... Qf5 {[%clk
0:03:00.8]} 7. Qxf5 {[%clk 0:02:54.3]} 7... exf5 {[%clk 0:03:02.7]} 8. Bd2
{[%clk 0:02:54.8]} 8... Be6 {[%clk 0:02:56.7]} 9. e3 {[%clk 0:02:51.6]} 9... c6
{[%clk 0:02:54.1]} 10. a3 {[%clk 0:02:50.9]} 10... Be7 {[%clk 0:02:53]} 11. b4
{[%clk 0:02:45.1]} 11... Nbd7 {[%clk 0:02:46.9]} 12. Na4 {[%clk 0:02:34]} 12...
Ne4 {[%clk 0:02:41.2]} 13. Nc5 {[%clk 0:02:29.7]} 13... Ndxc5 {[%clk 0:02:37.9]}
14. bxc5 {[%clk 0:02:31.4]} 14... b6 {[%clk 0:02:38.2]} 15. Ba6 {[%clk
0:02:25.7]} 15... Rb8 {[%clk 0:02:33.6]} 16. Rb1 {[%clk 0:01:21.9]} 16... O-O
{[%clk 0:02:32.4]} 17. cxb6 {[%clk 0:01:20.2]} 17... Rxb6 {[%clk 0:02:26.1]} 18.
Rxb6 {[%clk 0:01:16.3]} 18... axb6 {[%clk 0:02:28]} 19. O-O {[%clk 0:01:11.9]}
19... Bxa3 {[%clk 0:02:20.8]} 20. Bb7 {[%clk 0:01:06.2]} 20... Bd5 {[%clk
0:02:15.4]} 21. Ne5 {[%clk 0:01:06.5]} 21... Nxd2 {[%clk 0:02:15.2]} 22. Ra1
{[%clk 0:00:58.8]} 22... Bd6 {[%clk 0:02:04.6]} 23. Bxc6 {[%clk 0:00:43.8]}
23... Bxc6 {[%clk 0:02:02.3]} 24. Nxc6 {[%clk 0:00:43.8]} 24... b5 {[%clk
0:01:59.1]} 25. Rd1 {[%clk 0:00:39.2]} 25... Ne4 {[%clk 0:01:55.9]} 26. f3
{[%clk 0:00:36.4]} 26... Nc3 {[%clk 0:01:55.3]} 27. Rd3 {[%clk 0:00:31.7]} 27...
b4 {[%clk 0:01:56]} 28. Na5 {[%clk 0:00:26.3]} 28... Ra8 {[%clk 0:01:53.6]} 29.
Nc4 {[%clk 0:00:26.6]} 29... Be7 {[%clk 0:01:51.1]} 30. h3 {[%clk 0:00:25.3]}
30... Ra1+ {[%clk 0:01:44.2]} 31. Kh2 {[%clk 0:00:24.9]} 31... Rc1 {[%clk
0:01:27.6]} 32. d5 {[%clk 0:00:24]} 32... Nxd5 {[%clk 0:01:27.6]} 33. Ne5 {[%clk
0:00:15.9]} 33... Nf6 {[%clk 0:01:24.3]} 34. g4 {[%clk 0:00:09.8]} 34... fxg4
{[%clk 0:01:23.3]} 35. hxg4 {[%clk 0:00:11.7]} 35... Rc3 {[%clk 0:01:16.9]} 36.
Rd4 {[%clk 0:00:10.7]} 36... Rxe3 {[%clk 0:01:15.2]} 37. Nc6 {[%clk 0:00:12.3]}
37... Bf8 {[%clk 0:01:14.4]} 38. Kg3 {[%clk 0:00:10.4]} 38... h6 {[%clk
0:01:14.1]} 39. Rd8 {[%clk 0:00:07.5]} 39... Re8 {[%clk 0:01:07.6]} 40. Rd3
{[%clk 0:00:07.8]} 40... Rc8 {[%clk 0:01:06.8]} 41. Ne5 {[%clk 0:00:06.9]} 41...
g5 {[%clk 0:01:00.6]} 42. f4 {[%clk 0:00:02.9]} 42... Rc3 {[%clk 0:00:58.3]} 43.
fxg5 {[%clk 0:00:03.1]} 43... hxg5 {[%clk 0:00:58.3]} 0-1